bitfinex-derivatives/quotes_ETHF0:USTF0_20250926
["timestamp","ask_amount","ask_price","bid_price","bid_amount"]
[1758897242531,1.14317,3933.7,3932.6,0.8521]
[1758897242734,0.45736,3932.9,3932.8,0.8521]
[1758897242937,1.27556,3932.9,3932.8,0.00252824]
[1758897243135,1.27556,3932.9,3932.8,0.27252824]
[1758897243340,0.8182,3932.9,3932.8,0.27252824]
[1758897243531,3.2078,3933.1,3932.9,0.8521]
[1758897243739,3.2078,3933.1,3932.8,0.27252824]
[1758897243939,3.2078,3933.1,3933.0,1.2056]
[1758897244536,3.2078,3933.1,3933.0,0.8521]
[1758897244847,0.8182,3932.9,3932.8,0.00252824]
[1758897245038,0.8182,3932.9,3932.8,0.27252824]
[1758897246336,0.8182,3932.9,3932.8,0.00252824]
[1758897247243,0.8658,3932.7,3931.1,3.2078]
[1758897247445,0.45755,3931.3,3931.1,0.8165]
[1758897247750,3.66535,3931.3,3931.2,0.27]
[1758897247939,3.2078,3931.3,3931.2,1.0865]
[1758897248436,3.21064359,3931.3,3931.2,1.08953169]
[1758897248638,4.08414359,3931.3,3931.2,0.00303169]
[1758897249033,9.08414359,3931.3,3930.5,0.8165]
[1758897249243,9.08414359,3931.3,3929.8,8.53210822]
[1758897249244,0.45765,3930.5,3930.1,0.8165]
[1758897249447,0.45765,3930.5,3930.3,0.8165]
[1758897249742,4.0813,3930.7,3930.4,0.45764]
[1758897249944,3.2078,3930.7,3930.5,0.8165]
[1758897250139,3.2078,3930.7,3930.6,0.8165]
[1758897250743,3.2078,3930.7,3930.6,1.0865]
[1758897250940,0.00284359,3931.3,3930.6,1.0865]
[1758897250941,0.87634359,3931.3,3930.7,0.8165]
[1758897251146,0.00284359,3931.3,3930.7,0.8165]
[1758897251340,0.00284359,3931.3,3930.6,0.27]
[1758897251341,0.45756,3931.2,3930.6,0.27]
[1758897251742,0.00284359,3931.3,3930.9,0.45759]
[1758897251943,0.00284359,3931.3,3931.0,1.1454]
[1758897252146,1.33106,3931.2,3931.1,0.27]
[1758897253154,0.46039359,3931.3,3931.2,0.8165]
[1758897253450,0.8735,3931.2,3931.1,0.27]
[1758897254145,0.46039359,3931.3,3930.7,0.8165]
[1758897254346,0.4576,3930.8,3930.7,0.8165]
[1758897254751,0.4576,3930.8,3930.7,1.0865]
[1758897255140,3.6654,3930.8,3930.7,1.0865]
[1758897255443,1.33113,3930.6,3930.5,0.27322205]
[1758897255839,1.33113,3930.6,3929.5,40.0032]
[1758897255840,0.45769,3930.1,3929.8,0.27]
[1758897256146,0.45771,3929.9,3929.8,1.0865]
[1758897256351,0.45771,3929.9,3929.8,0.8165]
[1758897256544,0.45771,3929.9,3929.8,0.27]
[1758897256545,1.33121,3929.9,3929.8,0.27]
[1758897256749,1.33121,3929.9,3929.8,0.27182786]
[1758897257050,1.33121,3929.9,3929.8,1.08832786]
[1758897257452,0.45771,3929.9,3929.8,1.08832786]
[1758897257645,0.4577,3930.0,3929.9,0.8165]
[1758897258044,3.2078,3930.1,3929.9,0.8165]
[1758897258346,3.2078,3930.1,3929.8,0.27182786]
[1758897258347,0.45768,3930.1,3930.0,0.3289]
[1758897258549,0.45767,3930.2,3930.1,0.8165]
[1758897259145,3.2078,3930.7,3930.2,0.45767]
[1758897259354,0.45761,3930.8,3930.6,0.8165]
[1758897259654,0.45758,3931.0,3930.6,0.8165]
[1758897259852,0.45759,3930.9,3930.5,0.78654]
[1758897260053,3.2078,3931.1,3930.5,0.3289]
[1758897260249,3.2078,3931.1,3930.5,0.78653]
[1758897260453,0.45758,3931.0,3930.6,0.8165]
[1758897260653,0.45758,3931.0,3930.7,0.8165]
[1758897260956,0.00284359,3931.3,3931.1,0.8165]
[1758897261152,0.00284359,3931.3,3931.1,1.27407]
[1758897261358,0.00284359,3931.3,3931.2,0.8165]
[1758897261848,0.00284359,3931.3,3931.2,5.8165]
[1758897262054,0.00284359,3931.3,3931.2,9.0243]
[1758897262348,3.66524,3932.3,3931.8,0.45748]
[1758897262554,0.45744,3932.2,3932.1,0.8165]
[1758897262956,0.45744,3932.2,3929.7,2.28863]
[1758897262957,0.8735,3931.9,3930.6,5.32430822]
[1758897263249,0.45753,3931.4,3931.3,0.27]
[1758897263453,0.45753,3931.4,3931.3,0.8165]
[1758897263649,0.45761,3930.8,3930.5,1.1454]
[1758897263852,0.45761,3930.8,3930.6,0.27]
[1758897264054,0.45763,3930.6,3930.3,3.2078]
[1758897264263,0.45763,3930.6,3930.5,0.8165]
[1758897264762,0.45768,3930.1,3930.0,0.8165]
[1758897264958,3.66546,3930.4,3930.1,0.8165]
[1758897265150,0.45767,3930.2,3930.1,0.8165]
[1758897265350,0.45767,3930.2,3929.5,0.3289]
[1758897265351,1.33121,3929.9,3929.5,1.1454]
[1758897265662,1.33121,3929.9,3929.8,0.27182786]
[1758897265663,4.53901,3929.9,3929.8,0.27182786]
[1758897266570,4.53901,3929.9,3928.6,5.78215822]
[1758897266571,0.45785,3928.7,3928.4,4.0243]
[1758897266864,0.45783,3928.9,3928.6,0.8165]
[1758897267159,0.45784,3928.8,3928.7,0.8165]
[1758897267363,0.45784,3928.8,3928.7,1.0865]
[1758897267564,0.00293826,3928.8,3928.7,1.08883479]
[1758897269562,0.00293826,3928.8,3928.7,11.41314301]
[1758897270668,0.45771,3929.9,3929.5,0.3289]
[1758897270869,0.45771,3929.9,3929.6,0.27]
[1758897271165,0.45771,3929.9,3929.7,0.8165]
[1758897271473,0.45776,3929.5,3929.2,0.8165]
[1758897271766,1.33127,3929.4,3929.3,0.27]
[1758897271972,0.45781,3929.1,3928.8,0.8165]
[1758897272272,0.45781,3929.1,3928.9,0.27]
[1758897272468,0.45781,3929.1,3929.0,0.8165]
[1758897273171,0.45781,3929.1,3929.0,1.0865]
[1758897273865,0.45782,3929.0,3928.7,0.00233479]
[1758897274068,0.45783,3928.9,3928.8,1.0865]
[1758897274269,0.45783,3928.9,3928.8,0.8165]
[1758897274465,0.45783,3928.9,3928.8,1.0865]
[1758897274664,0.45781,3929.1,3928.9,0.8165]
[1758897274869,3.2078,3929.2,3928.8,0.27]
[1758897274870,0.45782,3929.0,3928.8,0.27]
[1758897275066,0.4578,3929.1,3928.9,0.8165]
[1758897275265,3.2078,3929.2,3928.8,0.27]
[1758897275576,0.45781,3929.0,3928.9,1.0865]
[1758897276180,3.2078,3929.2,3928.7,0.00233479]
[1758897276181,1.33134,3928.8,3928.7,0.00233479]
[1758897276472,4.53914,3928.8,3928.7,0.27233479]
[1758897276872,4.0813,3929.3,3928.8,0.8165]
[1758897277064,0.45783,3928.9,3928.8,0.8165]
[1758897277263,0.45783,3928.9,3928.7,0.27233479]
[1758897277264,0.45784,3928.8,3928.7,0.00233479]
[1758897277466,1.23864,3928.8,3928.7,0.27233479]
[1758897277671,0.45784,3928.8,3928.7,1.05883479]
[1758897278372,3.2078,3929.3,3928.8,0.7865]
[1758897278567,0.09981264,3929.2,3929.0,0.319]
[1758897278774,3.2078,3929.3,3929.2,0.7865]
[1758897278967,3.76542768,3929.3,3929.2,0.7865]
[1758897279364,3.30764768,3929.3,3929.2,0.7865]
[1758897279868,3.2078,3929.3,3929.2,0.7865]
[1758897280068,3.66558,3929.3,3929.2,0.7865]
[1758897280265,0.00303231,3929.5,3929.2,0.7865]
[1758897280567,0.00303231,3929.5,3929.4,1.24427]
[1758897280874,0.00303231,3929.5,3929.4,1.0565]
[1758897281574,0.00303231,3929.5,3929.4,1.51427]
[1758897282366,0.00303231,3929.5,3929.4,6.51427]
[1758897283079,0.46078231,3929.5,3929.4,1.0565]
[1758897283374,0.46078231,3929.5,3928.9,0.7865]
[1758897283375,0.7808,3929.4,3928.9,0.7865]
[1758897283682,3.31073473,3929.5,3929.0,0.27]
[1758897283683,0.4578,3929.1,3929.0,0.27]
[1758897284075,0.4578,3929.1,3929.0,1.0565]
[1758897284270,0.45784,3928.8,3928.7,3.99663479]
[1758897284470,0.45784,3928.8,3928.7,4.26663479]
[1758897284673,0.45784,3928.8,3928.7,1.05883479]
[1758897285578,1.23864,3928.8,3928.7,0.27233479]
[1758897285971,0.45784,3928.8,3928.7,1.05883479]
[1758897286675,0.45783,3928.9,3928.8,0.7865]
[1758897288182,3.2078,3929.0,3928.8,0.7865]
[1758897288378,0.45782,3928.9,3928.7,0.27233479]
[1758897288578,3.2078,3929.0,3928.7,0.27233479]
[1758897288579,0.45784,3928.8,3928.7,0.27233479]
[1758897288883,3.2078,3929.0,3928.7,0.73018479]
[1758897289076,3.2078,3929.0,3928.8,0.7865]
[1758897289271,3.2078,3929.0,3928.7,0.27233479]
[1758897289472,3.2078,3929.4,3929.1,0.7865]
[1758897289680,0.45778,3929.3,3929.2,0.27]
[1758897289878,0.55767564,3929.3,3929.2,0.27]
[1758897290075,0.55767564,3929.3,3929.2,1.0565]
[1758897290477,0.09989564,3929.3,3929.2,1.0565]
[1758897290676,3.2078,3929.4,3929.2,0.27]
[1758897290971,0.45778,3929.3,3929.2,0.27]
[1758897291181,0.88082644,3929.3,3929.2,0.27]
[1758897291378,1.33860644,3929.3,3929.2,0.27]
[1758897292178,0.45781,3929.0,3928.9,0.7865]
[1758897292480,1.33863644,3929.0,3928.9,0.27]
[1758897292782,1.23864,3928.8,3928.7,0.00233479]
[1758897292983,1.33866644,3928.8,3928.7,0.27233479]
[1758897293882,1.33866644,3928.8,3928.7,0.00233479]
[1758897293883,6.33866644,3928.8,3928.7,0.00233479]
[1758897294277,6.87456916,3928.8,3928.7,0.00233479]
[1758897295283,1.87456916,3928.8,3928.7,0.00233479]
[1758897295581,1.33866644,3928.8,3928.7,0.00233479]
[1758897296173,1.87456595,3928.8,3928.7,0.00233479]
[1758897296378,0.45793,3928.0,3927.9,0.81195922]
[1758897296580,0.55795644,3928.0,3927.9,1.08195922]
[1758897297476,0.55795644,3928.0,3927.9,1.08406108]
[1758897298376,0.10002644,3928.0,3927.9,1.08406108]
[1758897298570,3.2078,3928.3,3927.9,1.08406108]
[1758897298571,0.45792,3928.2,3927.9,1.08406108]
[1758897298776,0.55807951,3928.1,3928.0,1.1055]
[1758897299585,3.2078,3928.3,3928.2,0.45791]
[1758897299784,3.2078,3928.3,3928.1,0.7865]
[1758897299985,0.45792,3928.1,3928.0,1.1055]
[1758897300279,0.10112496,3928.1,3928.0,1.0565]
[1758897300582,0.55904496,3928.1,3928.0,0.7865]
[1758897300884,1.33984496,3928.1,3928.0,0.27]
[1758897301178,1.33984496,3928.1,3927.9,1.08e-06]
[1758897301179,1.48893,3928.0,3927.9,1.08e-06]
[1758897301383,0.45803,3927.1,3927.0,0.7865]
[1758897301577,0.45803,3927.1,3927.0,0.27]
[1758897301578,4.44663,3927.1,3927.0,0.27]
[1758897302281,4.44663,3927.1,3927.0,0.27292757]
[1758897302779,3.66583,3927.1,3927.0,1.05942757]
[1758897302980,3.2078,3927.5,3927.3,0.45801]
[1758897303180,3.66579,3927.5,3927.4,0.7865]
[1758897303482,0.45803,3927.1,3927.0,0.59192757]
[1758897303672,3.9886,3927.5,3927.0,0.59192757]
[1758897303878,0.45802,3927.3,3927.0,0.59192757]
[1758897304072,3.2078,3927.5,3927.2,0.45802]
[1758897304372,1.2388,3927.4,3927.3,0.27]
[1758897304576,1.2388,3927.4,3927.3,1.0565]
[1758897304775,1.2388,3927.4,3927.3,0.27]
[1758897305179,0.45803,3927.1,3927.0,0.00292757]
[1758897305380,4.44663,3927.1,3927.0,0.00292757]
[1758897305575,9.44663,3927.1,3927.0,0.00292757]
[1758897306077,4.44663,3927.1,3927.0,0.00292757]
[1758897306283,4.44663,3927.1,3925.8,3.2078]
[1758897306284,0.45815,3926.1,3925.8,3.2078]
[1758897306484,1.25665,3926.1,3926.0,0.224]
[1758897306687,0.7985,3926.1,3925.5,1.1578]
[1758897307187,0.45816,3926.0,3925.6,0.27]
[1758897307486,0.84045734,3926.1,3925.8,0.84]
[1758897307673,0.8372,3926.0,3925.8,0.84]
[1758897307873,0.00325734,3926.1,3925.8,0.84]
[1758897308089,0.00325734,3926.1,3923.5,0.44146009]
[1758897308090,0.3127,3924.5,3923.5,0.44146009]
[1758897308381,3.2078,3924.2,3924.0,0.3312]
[1758897308976,3.2078,3924.2,3924.0,0.61403187]
[1758897309488,3.2078,3924.6,3924.5,0.3312]
[1758897309691,6.0597636,3926.6,3924.5,0.6122]
[1758897309692,3.2078,3925.1,3924.5,0.6122]
[1758897309880,2.34777882,3926.1,3925.0,0.3312]
[1758897310085,3.2078,3925.1,3925.0,1.1712]
[1758897310286,3.2078,3925.1,3924.7,0.281]
[1758897310589,0.4583,3924.9,3924.7,0.281]
[1758897310885,3.2078,3925.1,3924.7,0.45831]
[1758897311082,3.2078,3925.1,3925.0,0.3312]
[1758897311390,3.2078,3925.1,3925.0,1.1712]
[1758897311578,3.2078,3925.5,3925.3,0.45824]
[1758897311778,3.2078,3925.5,3925.4,1.121]
[1758897312386,0.0254,3925.6,3925.5,1.62942]
[1758897312792,3.2078,3926.4,3926.3,1.29813]
[1758897312985,3.2078,3926.4,3926.3,0.84]
[1758897313188,3.2078,3926.4,3926.3,1.121]
[1758897313390,3.32188509,3926.4,3926.3,0.281]
[1758897313588,3.32188509,3926.4,3926.0,0.3312]
[1758897313589,0.45813,3926.3,3926.2,0.28]
[1758897313891,0.00182735,3926.3,3926.2,1.12]
[1758897314087,1.14537,3926.2,3925.5,0.3312]
[1758897314293,3.66601,3925.6,3925.4,0.281]
[1758897314487,3.66601,3925.6,3925.5,0.84]
[1758897314691,3.2078,3925.6,3925.5,1.1712]
[1758897314886,3.2078,3925.9,3925.6,0.84]
[1758897315186,3.2078,3925.9,3925.7,0.45819]
[1758897315387,0.00182735,3926.3,3925.6,0.84]
[1758897315388,3.20962735,3926.3,3926.0,0.3312]
[1758897315593,0.45995735,3926.3,3926.2,0.84]
[1758897315786,3.66775735,3926.3,3926.2,1.121]
[1758897315990,3.20962735,3926.3,3926.2,1.121]
[1758897316292,3.20962735,3926.3,3926.2,0.84]
[1758897316588,0.45814,3926.2,3926.0,0.3312]
[1758897316786,0.45819,3925.8,3925.7,0.84]
[1758897316989,3.66599,3925.8,3925.7,1.121]
[1758897317298,0.45825,3925.3,3925.1,0.84]
[1758897317488,1.14544,3925.9,3925.7,0.84]
[1758897317792,3.77996778,3925.8,3925.7,0.84]
[1758897318096,3.2078,3925.8,3925.7,0.84]
[1758897318793,3.2078,3925.8,3925.7,1.121]
[1758897318988,3.2078,3925.8,3925.7,0.84]
[1758897319190,3.2078,3925.8,3925.7,1.121]
[1758897319392,3.20962735,3926.3,3926.2,0.84]
[1758897319592,0.00182735,3926.3,3926.2,0.84]
[1758897320114,0.0254,3927.0,3926.8,0.45806]
[1758897320289,0.0254,3927.0,3926.9,1.121]
[1758897320591,3.2078,3928.2,3928.1,0.84]
[1758897320791,3.2078,3928.2,3928.1,1.121]
[1758897320985,3.32200335,3928.2,3928.1,1.121]
[1758897321292,8.32381795,3928.2,3928.1,0.28426185]
[1758897321492,3.32381795,3928.2,3928.1,1.12426185]
[1758897321893,3.20963945,3928.2,3928.1,1.12426185]
[1758897322583,3.20963945,3928.2,3928.1,0.84326185]
[1758897322783,8.32390006,3928.2,3928.1,0.00326185]
[1758897322987,8.32390006,3928.2,3927.1,40.56]
[1758897322988,0.45802,3927.2,3927.1,40.56]
[1758897323192,3.66582,3927.2,3927.1,40.841]
[1758897323890,3.2078,3927.2,3927.1,40.84400895]
[1758897324098,3.2078,3927.2,3927.1,0.84300895]
[1758897324291,3.2078,3927.2,3927.1,1.12300895]
[1758897324598,3.2078,3927.2,3927.1,0.84300895]
[1758897324991,3.2078,3927.2,3927.1,1.12300895]
[1758897325897,3.2078,3927.2,3927.1,6.12300895]
[1758897326100,0.0091,3927.9,3927.6,0.45797]
[1758897326395,0.45797,3927.7,3927.5,0.3312]
[1758897326590,0.45797,3927.7,3927.6,0.28]
[1758897326793,0.46705,3927.9,3927.6,0.28]
[1758897326987,0.0091,3927.9,3927.6,0.28]
[1758897327190,0.0091,3927.9,3927.8,0.84]
[1758897327491,3.2078,3928.4,3927.8,0.84]
[1758897327696,3.2078,3928.4,3928.1,0.84]
[1758897327697,3.66568,3928.4,3928.1,0.84]
[1758897327895,0.4579,3928.3,3928.1,0.28]
[1758897328091,0.83903945,3928.2,3928.1,0.28]
[1758897328296,0.00183945,3928.2,3928.1,1.12]
[1758897329390,0.00183945,3928.2,3928.1,1.57792]
[1758897329795,0.00183945,3928.2,3928.1,1.12]
[1758897329993,0.45792,3928.1,3927.6,0.84]
[1758897330201,0.45793,3928.0,3927.7,39.993]
[1758897330395,0.45975945,3928.2,3927.8,0.84]
[1758897330596,0.45794,3928.0,3927.7,39.993]
[1758897330798,0.00183945,3928.2,3928.1,0.84]
[1758897331000,0.00183945,3928.2,3928.1,1.12]
[1758897331295,0.00183945,3928.2,3928.1,0.84]
[1758897331495,0.00183945,3928.2,3927.1,0.00300895]
[1758897331496,0.45799,3927.5,3927.1,3.21080895]
[1758897331706,3.2078,3927.9,3927.3,0.84]
[1758897331907,0.00183945,3928.2,3927.5,1.62919]
[1758897332104,0.8372,3928.1,3927.7,0.84]
[1758897332306,0.458,3927.4,3927.3,0.84]
[1758897332501,0.45799,3927.5,3927.3,0.28]
[1758897332804,0.45802,3927.3,3927.1,0.00300895]
[1758897333106,0.95265057,3927.2,3927.1,0.28300895]
[1758897333903,0.11545057,3927.2,3927.1,1.12300895]
[1758897334105,0.45801,3927.3,3927.2,0.84]
[1758897334602,5.45801,3927.3,3927.1,0.00300895]
[1758897334801,0.8372,3927.2,3927.1,0.00300895]
[1758897335002,0.95266028,3927.2,3927.1,0.28300895]
[1758897336506,5.95266028,3927.2,3927.1,0.28300895]
[1758897336806,5.95266028,3927.2,3927.1,0.00300895]
[1758897337401,0.4582,3925.8,3925.7,0.84]
[1758897337611,0.45821,3925.6,3925.1,4.0767]
[1758897337801,0.45822,3925.5,3925.4,0.8689]
[1758897337998,0.45822,3925.5,3925.2,0.73726]
[1758897337999,3.2078,3925.8,3925.6,0.8689]
[1758897338200,0.8231,3926.7,3925.8,0.8689]
[1758897338201,0.45817,3926.0,3925.8,0.8689]
[1758897338403,0.45818,3925.9,3925.8,0.8689]
[1758897338706,0.45817,3926.0,3925.8,0.8689]
[1758897338902,3.2078,3926.5,3925.8,0.8689]
[1758897339101,0.11543882,3926.4,3925.8,0.8689]
[1758897339296,0.11543882,3926.3,3925.7,0.279]
[1758897339501,4.0309,3926.9,3926.2,0.45814]
[1758897339712,1.14503,3927.4,3926.5,0.3292]
[1758897339713,0.573613,3926.8,3926.5,0.3292]
[1758897339904,0.45809,3926.6,3926.5,1.1981]
[1758897340108,0.45809,3926.6,3926.5,0.8689]
[1758897340511,0.11564393,3926.6,3926.5,0.279]
[1758897340810,0.93874393,3926.6,3926.5,0.279]
[1758897341305,0.45816,3926.0,3925.9,4.0767]
[1758897341512,0.45816,3926.0,3925.9,3.4868]
[1758897342622,0.4582,3925.7,3925.6,0.87142382]
[1758897343117,4.60481103,3925.7,3925.6,0.28152382]
[1758897343299,9.14661103,3925.7,3925.1,39.717]
[1758897343612,1.28136,3925.2,3925.1,39.717]
[1758897343811,1.39707103,3925.2,3925.1,39.996]
[1758897344115,3.2078,3926.3,3925.1,49.0727]
[1758897344301,0.1155662,3926.2,3925.6,0.8689]
[1758897344501,0.1155662,3926.1,3926.0,1.1981]
[1758897344704,0.00275982,3926.3,3926.0,0.3292]
[1758897344906,0.00275982,3926.3,3926.2,0.8689]
[1758897345417,0.45814,3926.2,3926.1,0.279]
[1758897346016,0.45814,3926.2,3925.5,1.1981]
[1758897346017,0.45819,3925.8,3925.5,1.1981]
[1758897346308,1.2813,3925.7,3925.6,0.279]
[1758897346509,4.03365982,3926.3,3925.6,0.279]
[1758897346711,0.45817,3926.0,3925.6,0.279]
[1758897346911,4.03365982,3926.3,3925.6,0.279]
[1758897346912,3.21055982,3926.3,3925.9,0.45817]
[1758897347106,3.21055982,3926.3,3926.0,0.6072]
[1758897347302,0.45814,3926.2,3926.0,0.278]
[1758897347510,0.4582,3925.7,3925.6,0.8689]
[1758897347707,0.8231,3925.5,3925.4,3.2078]
[1758897347907,0.8231,3925.5,3925.4,3.4858]
[1758897348113,0.8231,3925.5,3925.1,0.87127053]
[1758897348114,1.28134,3925.4,3925.1,0.87127053]
[1758897348309,1.28134,3925.4,3925.2,0.278]
[1758897348310,0.8231,3925.3,3925.2,0.278]
[1758897348613,0.8231,3925.3,3925.2,1.1469]
[1758897348614,0.1154765,3925.3,3925.2,1.1469]
[1758897348819,0.45824,3925.4,3925.3,0.8689]
[1758897349014,0.57371597,3925.4,3925.3,0.8689]
[1758897349408,0.8231,3925.3,3925.2,0.278]
[1758897350006,3.2078,3925.7,3925.3,0.8689]
[1758897350214,3.2078,3925.7,3925.6,0.8689]
[1758897350422,2.04250211,3926.1,3926.0,1.65626]
[1758897350607,0.0111,3926.6,3926.5,1.65621]
[1758897350914,3.2078,3927.0,3926.5,5.75435819]
[1758897351117,3.2078,3927.5,3926.6,4.0767]
[1758897351311,3.2078,3927.5,3927.3,0.8689]
[1758897351620,2.03655098,3928.6,3927.6,0.8689]
[1758897351917,0.45794,3927.9,3927.7,3.2078]
[1758897352219,1.28104,3927.9,3927.8,0.278]
[1758897352414,0.8231,3927.8,3927.7,3.2078]
[1758897352613,0.8231,3927.8,3927.7,3.4858]
[1758897353112,0.45794,3927.9,3927.7,3.4858]
[1758897353326,4.2987,3928.5,3927.8,0.8689]
[1758897353613,0.11551854,3928.4,3927.8,0.8689]
[1758897353816,0.0031993,3928.6,3928.3,3.2078]
[1758897354017,0.4610593,3928.6,3928.5,0.8689]
[1758897354217,0.0031993,3928.6,3928.5,1.1981]
[1758897354418,0.0254,3929.1,3929.0,0.3292]
[1758897354613,3.2078,3930.0,3929.0,9.83105819]
[1758897354811,41.19143,3931.5,3929.9,4.0767]
[1758897354812,3.2078,3930.6,3929.9,4.0767]
[1758897355124,0.45767,3930.3,3930.1,0.8689]
[1758897355310,3.2078,3930.6,3930.0,1.1981]
[1758897355311,0.45769,3930.1,3930.0,1.1981]
[1758897355622,0.45769,3930.1,3930.0,1.1469]
[1758897355814,0.45769,3930.1,3930.0,4.3547]
[1758897356112,0.00220266,3930.3,3930.0,4.3547]
[1758897356113,0.00220266,3930.3,3930.0,3.815]
[1758897356313,0.45768,3930.2,3929.6,4.0767]
[1758897356521,0.4577,3930.0,3929.8,0.8689]
[1758897356712,0.00220266,3930.3,3929.7,0.278]
[1758897356713,0.00220266,3930.3,3929.7,1.1469]
[1758897356913,0.45986266,3930.3,3930.1,0.8689]
[1758897357113,0.45986266,3930.3,3930.2,1.1469]
[1758897357627,0.00220266,3930.3,3930.2,1.1469]
[1758897358015,0.00220266,3930.3,3930.0,3.537]
[1758897358208,0.45767,3930.2,3930.1,1.1469]
[1758897358609,0.45767,3930.2,3930.1,0.8689]
[1758897358808,0.45767,3930.2,3930.0,3.2078]
[1758897358809,1.28077,3930.2,3930.0,3.2078]
[1758897359011,0.45773,3929.7,3929.5,3.2078]
[1758897359416,0.45773,3929.7,3929.6,0.278]
[1758897359607,0.45773,3929.7,3928.8,44.85515819]
[1758897359608,0.45779,3929.2,3929.1,3.2078]
[1758897359811,0.45779,3929.2,3929.1,4.3547]
[1758897360018,0.8231,3929.7,3929.1,4.3537]
[1758897360019,0.45776,3929.5,3929.1,4.3537]
[1758897360218,0.45777,3929.4,3929.2,0.8689]
[1758897360426,3.2078,3929.9,3929.1,4.3537]
[1758897360722,0.45778,3929.3,3929.1,3.4848]
[1758897360923,0.00220266,3930.3,3929.2,0.8689]
[1758897361114,0.00220266,3930.3,3930.2,5.14715819]
[1758897361318,0.0254,3930.9,3930.6,0.8689]
[1758897361520,3.2078,3932.0,3930.8,8.35495819]
[1758897361726,3.2078,3932.0,3931.6,0.8689]
[1758897361927,3.2078,3932.0,3931.7,0.278]
[1758897362222,3.2078,3932.8,3931.9,3.2078]
[1758897362524,0.00314644,3932.0,3931.9,4.0767]
[1758897362710,0.00314644,3932.0,3931.9,9.50185819]
[1758897362915,0.47937,3932.9,3932.1,0.8689]
[1758897363111,0.45739,3932.7,3932.4,3.2078]
[1758897363417,0.47937,3932.9,3932.6,0.8689]
[1758897363622,0.022,3932.9,3932.5,0.278]
[1758897363818,0.024772,3932.9,3932.5,0.278]
[1758897364116,0.024772,3932.9,3932.5,0.6072]
[1758897364321,0.024772,3932.9,3932.8,4.0767]
[1758897364517,0.024772,3932.9,3932.8,4.3537]
[1758897365016,0.482132,3932.9,3932.8,3.2078]
[1758897365216,0.482132,3932.9,3932.4,0.8689]
[1758897365217,0.45741,3932.5,3932.4,0.8689]
[1758897365420,0.45741,3932.5,3931.7,0.00292979]
[1758897365421,0.87,3932.3,3932.1,0.277]
[1758897365626,0.45744,3932.3,3932.2,0.277]
[1758897365922,3.2078,3932.7,3931.7,0.00292979]
[1758897366228,0.45742,3932.4,3932.2,0.8538]
[1758897366518,0.024772,3932.9,3932.4,0.8538]
[1758897366725,3.2078,3934.0,3932.5,8.69025819]
[1758897367025,3.2078,3934.0,3933.2,0.8538]
[1758897367218,3.2078,3934.0,3933.6,0.8538]
[1758897367415,3.2078,3934.0,3933.8,0.8788]
[1758897367719,0.00264792,3934.0,3933.8,0.8788]
[1758897368823,0.00264792,3934.0,3933.9,5.8788]
[1758897369324,0.00264792,3934.0,3933.9,40.8358]
[1758897369626,0.45724,3933.9,3933.7,3.2078]
[1758897369816,0.00264792,3934.0,3933.8,1.1558]
[1758897370425,0.00264792,3934.0,3933.9,0.8788]
[1758897371019,0.8059,3933.9,3933.7,3.2078]
[1758897371231,0.8059,3933.9,3933.3,0.8788]
[1758897371528,0.45726,3933.8,3933.4,1.1558]
[1758897371725,0.00264792,3934.0,3933.7,0.8788]
[1758897371928,0.00264792,3934.0,3933.9,0.8788]
[1758897373338,3.2078,3935.4,3934.6,0.8788]
[1758897373624,3.2078,3935.4,3934.5,0.3488]
[1758897373625,0.11708094,3935.3,3935.0,0.8788]
[1758897373817,0.45705,3935.6,3935.1,1.1558]
[1758897374020,1.0823,3936.0,3934.0,0.3488]
[1758897374021,0.45716,3934.7,3934.0,3.2078]
[1758897374223,0.8059,3934.8,3934.1,0.277]
[1758897374526,0.45718,3934.5,3934.2,0.8788]
[1758897374729,0.00222925,3934.8,3934.1,0.27917018]
[1758897374926,0.4572,3934.3,3934.1,0.27917018]
[1758897375222,0.11705677,3934.2,3934.1,0.27917018]
[1758897375428,0.92295677,3934.2,3934.1,0.27917018]
[1758897375625,0.92297744,3934.2,3934.1,0.27917018]
[1758897375825,5.92297744,3934.2,3934.1,0.00217018]
[1758897376022,0.11707744,3934.2,3934.1,1.15797018]
[1758897376222,5.11707744,3934.2,3934.1,0.27917018]
[1758897376423,5.92297744,3934.2,3934.1,0.27917018]
[1758897377130,0.11707744,3934.2,3934.1,1.15797018]
[1758897377725,0.11707744,3934.2,3934.1,0.27917018]
[1758897378234,0.11707744,3934.2,3934.1,0.00217018]
[1758897378427,0.11707744,3934.2,3934.1,0.27917018]
[1758897379029,0.11707744,3934.2,3934.1,1.15797018]
[1758897379640,0.92297744,3934.2,3934.1,0.00217018]
[1758897379928,0.92250443,3934.2,3934.1,0.00217018]
[1758897380526,0.11660443,3934.2,3934.1,0.00217018]
[1758897381029,0.92250443,3934.2,3934.1,0.00217018]
[1758897381339,1.49547044,3934.2,3934.1,0.00217018]
[1758897381634,1.49547044,3934.2,3933.1,0.8788]
[1758897381635,1.26322,3933.3,3933.1,0.8788]
[1758897381832,1.26322,3933.3,3933.2,0.277]
[1758897382028,0.92294124,3933.3,3933.2,0.277]
[1758897382231,0.11704124,3933.3,3933.2,0.277]
[1758897382534,0.11704124,3933.3,3933.2,1.15768673]
[1758897383033,0.11704124,3933.3,3933.2,1.33800673]
[1758897383234,0.11704124,3933.3,3933.2,1.61400673]
[1758897384136,3.2078,3934.5,3933.6,1.14318]
[1758897384336,3.2078,3934.5,3934.4,0.8788]
[1758897384640,4.58913723,3934.5,3934.3,0.276]
[1758897384839,0.57543723,3934.4,3934.3,1.1548]
[1758897385038,0.01032925,3934.8,3934.7,1.33595]